fUSD/lending_fUSD_20260324
["ID","MTS","AMOUNT","RATE_DAILY","PERIOD"]
[408832215,1774338646767,-10429.70076401,0.00015998,2]
[408832217,1774338646777,-29271.90918836,0.00015998,2]
[408832219,1774338646787,-209.70759494,0.00015999,2]
[408832221,1774338646796,-678.1,0.00015999,2]
[408832222,1774338646805,-678.1,0.00015999,2]
[408832224,1774338646815,-678.1,0.00015999,2]
[408832226,1774338646825,-678.1,0.00015999,2]
[408832228,1774338646834,-678.1,0.00015999,2]
[408832230,1774338646843,-678.1,0.00015999,2]
[408832232,1774338646852,-678.1,0.00015999,2]
[408832234,1774338646861,-678.1,0.00015999,2]
[408832236,1774338646870,-678.1,0.00015999,2]
[408832239,1774338646880,-678.1,0.00015999,2]
[408832241,1774338646889,-678.1,0.00015999,2]
[408832242,1774338646900,-678.1,0.00015999,2]
[408832245,1774338646910,-678.1,0.00015999,2]
[408832246,1774338646919,-678.1,0.00015999,2]
[408832249,1774338646928,-678.1,0.00015999,2]
[408832250,1774338646938,-678.1,0.00015999,2]
[408832253,1774338646947,-678.1,0.00015999,2]
[408832255,1774338646956,-678.1,0.00015999,2]
[408832256,1774338646966,-678.1,0.00015999,2]
[408832258,1774338646975,-678.29012598,0.00015999,2]
[408832260,1774338646984,-500.0,0.00015999,2]
[408832263,1774338646993,-500.0,0.00015999,2]
[408832265,1774338647004,-500.0,0.00015999,2]
[408832267,1774338647013,-500.0,0.00015999,2]
[408832268,1774338647022,-500.0,0.00015999,2]
[408832270,1774338647031,-500.0,0.00015999,2]
[408832272,1774338647040,-500.0,0.00015999,2]
[408832274,1774338647049,-500.0,0.00015999,2]
[408832276,1774338647058,-500.0,0.00015999,2]
[408832278,1774338647068,-500.0,0.00015999,2]
[408832280,1774338647077,-500.0,0.00015999,2]
[408832282,1774338647086,-500.0,0.00015999,2]
[408832284,1774338647095,-500.0,0.00015999,2]
[408832286,1774338647106,-500.0,0.00015999,2]
[408832288,1774338647115,-500.0,0.00015999,2]
[408832290,1774338647125,-649.0154558,0.00015999,2]
[408832292,1774338647135,-500.0,0.00015999,2]
[408832294,1774338647144,-500.0,0.00015999,2]
[408832296,1774338647154,-500.0,0.00015999,2]
[408832298,1774338647163,-500.0,0.00015999,2]
[408832300,1774338647172,-421.42962803,0.00015999,2]
[408832302,1774338647182,-500.0,0.00015999,2]
[408832304,1774338647191,-500.0,0.00015999,2]
[408832306,1774338647200,-338.47316987,0.00015999,2]
[408832308,1774338647209,-1463964.99758535,0.00016,2]
[408832310,1774338647218,-500.0,0.00016,2]
[408832312,1774338647228,-521.98,0.00016,2]
[408832314,1774338647237,-621444.11161217,0.00016,2]
[408832316,1774338647246,-4825434.55517349,0.00016,2]
[408832318,1774338647256,-1368020.83604635,0.00016,2]
[408832320,1774338647266,-569341.76908651,0.00016,2]
[408832322,1774338647275,-5541.11,0.00016,2]
[408832324,1774338647285,-405.23,0.00016,2]
[408832326,1774338647295,-1471.86,0.00016,2]
[408832328,1774338647305,-781618.47076292,0.00016,2]
[408832330,1774338647314,-500.0,0.00016,5]
[408832332,1774338647324,-500.0,0.00016,5]
[408832334,1774338647333,-500.0,0.00016,5]
[408832336,1774338647343,-502.86321793,0.00016,5]
[408832338,1774338647356,-190.25427789,0.00016,2]
[408832340,1774338647366,-2000.0,0.00016,2]
[408832342,1774338647375,-1361.0,0.00016083,2]
[408832344,1774338647384,-168.0,0.00016091,2]
[408832345,1774338647394,-190.25427789,0.000161,2]
[408832347,1774338647404,-2000.0,0.000161,2]
[408832349,1774338647413,-9999.99,0.00016116,2]
[408832351,1774338647424,-2502.2632122,0.00016164,2]
[408832353,1774338647433,-2500.0,0.00016164,2]
[408832355,1774338647443,-2500.0,0.00016164,2]
[408832376,1774338647633,-2000.0,0.000162,2]
[408832378,1774338647648,-165.42,0.00016246,2]
[408832380,1774338647657,-168.0,0.00016251,2]
[408832382,1774338647667,-1264.19,0.00016275,2]
[408832384,1774338647676,-624.62,0.00016275,2]
[408832386,1774338647686,-4000.0,0.00016282,2]
[408832388,1774338647695,-8155.285001,0.00016324,2]
[408832390,1774338647704,-1500.0,0.00016327,2]
[408832392,1774338647713,-2597.449348,0.00016327,2]
[408832394,1774338647723,-1500.0,0.00016327,2]
[408832396,1774338647732,-1500.0,0.00016336,2]
[408832398,1774338647742,-340.4498,0.000164,2]
[408832400,1774338647751,-1500.0,0.00016411,2]
[408832402,1774338647761,-400.0,0.0001642,2]
[408832404,1774338647770,-400.0,0.0001642,2]
[408832406,1774338647779,-400.0,0.0001642,2]
[408832408,1774338647788,-400.0,0.0001642,2]
[408832409,1774338647798,-400.0,0.0001642,2]
[408832411,1774338647807,-400.0,0.0001642,2]
[408832413,1774338647818,-400.0,0.0001642,2]
[408832415,1774338647827,-540.0,0.0001642,2]
[408832417,1774338647838,-1339.47,0.00016438,2]
[408832419,1774338647847,-347.77,0.00016438,2]
[408832421,1774338647857,-151.0,0.00016438,2]
[408832423,1774338647866,-250.0,0.00016548,2]
[408832425,1774338647876,-250.0,0.00016548,2]
[408832427,1774338647885,-250.0,0.00016548,2]
[408832429,1774338647894,-172.0,0.00016548,2]
[408832431,1774338647903,-822.55,0.00016585,2]
[408832433,1774338647913,-504.14789476,0.0001659,2]
[408832435,1774338647922,-154.0,0.00016595,2]
[408832437,1774338647932,-198.0,0.00016595,2]
[408832439,1774338647941,-4000.0,0.0001667,2]
[408832441,1774338647951,-1011.86245481,0.00016712,2]
[408832443,1774338647960,-3000.0,0.00016712,2]
[408832445,1774338647969,-500.0,0.00016796,7]
[408832447,1774338647978,-500.0,0.00016796,7]
[408832449,1774338647988,-1050.0,0.00016803,2]
[408832451,1774338647997,-1050.0,0.00016803,2]
[408832453,1774338648007,-1050.0,0.00016803,2]
[408832455,1774338648017,-1050.0,0.00016803,2]
[408832457,1774338648026,-1050.0,0.00016803,2]
[408832459,1774338648035,-1050.0,0.00016803,2]
[408832461,1774338648045,-1050.0,0.00016803,2]
[408832463,1774338648054,-1028.0,0.00016803,2]
[408832465,1774338648064,-736.0,0.00016804,2]
[408832467,1774338648073,-150.0,0.0001683,14]
[408832469,1774338648083,-844.5932573,0.00016884,2]
[408832471,1774338648092,-4846.77,0.00016946,2]
[408832473,1774338648102,-503.92655522,0.00016959,2]
[408832475,1774338648111,-195.0,0.00017,2]
[408832477,1774338648121,-600.0,0.00017,2]
[408832479,1774338648131,-160.0,0.00017,7]
[408832481,1774338648140,-204.0,0.00017,7]
[408832482,1774338648149,-4000.0,0.00017058,2]
[408832484,1774338648159,-165.42,0.00017059,2]
[408832487,1774338648168,-979.16666667,0.00017077,2]
[408832489,1774338648178,-160.0,0.00017077,2]
[408832490,1774338648187,-160.0,0.00017077,2]
[408832493,1774338648197,-160.0,0.000172,7]
[408832495,1774338648207,-3500.0,0.0001726,2]
[408832497,1774338648217,-488.843261,0.00017344,7]
[408832498,1774338648226,-2253.097836,0.00017344,7]
[408832501,1774338648236,-5114.258789,0.00017374,7]
[408832502,1774338648246,-4288.66036,0.00017394,7]
[408832504,1774338648256,-2000.0,0.00017508,2]
[408832507,1774338648265,-387.99,0.0001751,2]
[408832509,1774338648275,-3352.32,0.00017544,2]
[408832510,1774338648285,-154.0,0.00017595,2]
[408832513,1774338648295,-198.0,0.00017595,2]
[408832514,1774338648304,-714.68,0.000176,2]
[408832516,1774338648315,-857.49,0.000176,2]
[408832518,1774338648325,-1345.0,0.0001761,2]
[408832520,1774338648335,-539.136,0.0001761,2]
[408832522,1774338648348,-621.0,0.0001761,2]
[408832524,1774338648362,-1262.0,0.0001761,2]
[408832526,1774338648372,-3762.0,0.0001761,2]
[408832528,1774338648381,-6009.0,0.0001761,2]
[408832530,1774338648392,-5541.11,0.000177,2]
[408832532,1774338648407,-405.23,0.000177,2]
[408832534,1774338648425,-1471.86,0.000177,2]
[408832536,1774338648446,-447.4113,0.000177,2]
[408832538,1774338648455,-3763.94,0.000178,2]
[408832540,1774338648465,-4000.0,0.00017808,2]
[408832543,1774338648475,-800.0,0.00017808,2]
[408832545,1774338648486,-1008.87683298,0.0001786,2]
[408832546,1774338648496,-165.42,0.00017871,2]
[408832548,1774338648505,-1230.96255843,0.0001789,2]
[408832550,1774338648515,-1078.66214239,0.0001789,2]
[408832552,1774338648525,-500.0,0.00017892,7]
[408832554,1774338648535,-300.0,0.00017899,2]
[408832556,1774338648544,-12804.01214906,0.000179,2]
[408832558,1774338648554,-12804.01214903,0.000179,2]
[408832560,1774338648563,-12804.01214903,0.000179,2]
[408832562,1774338648572,-12804.01214903,0.000179,2]
[408832564,1774338648583,-521.98,0.000179,2]
[408832566,1774338648592,-1875.02979694,0.00018,5]
[408832568,1774338648602,-1199.70067364,0.00018,2]
[408832570,1774338648612,-535.18212952,0.00018,2]
[408832572,1774338648622,-1000.0,0.00018,2]
[408832574,1774338648632,-485.91,0.00018024,2]
[408832576,1774338648641,-150.0,0.00018027,2]
[408832578,1774338648650,-977.391122,0.00018035,7]
[408832580,1774338648660,-194.972563,0.00018059,7]
[408832582,1774338648669,-1790.57964639,0.000181,2]
[408832584,1774338648678,-1252.0,0.00018216,2]
[408832586,1774338648688,-822.55,0.00018243,2]
[408832588,1774338648697,-10000.0,0.00018247,2]
[408832590,1774338648707,-2417.95754003,0.00018356,2]
[408832592,1774338648716,-400.5875051,0.00018483,2]
[408832594,1774338648725,-159.28942954,0.00018595,2]
[408832596,1774338648735,-198.0,0.00018595,2]
[408832598,1774338648745,-501.0,0.0001863,2]
[408832600,1774338648754,-165.42,0.00018683,2]
[408832602,1774338648764,-154.7857157,0.00018728,2]
[408832604,1774338648773,-800.0,0.000188,2]
[408832606,1774338648783,-1116.22,0.00018904,2]
[408832608,1774338648792,-1600.0,0.00018904,2]
[408832610,1774338648801,-500.0,0.00018988,7]
[408832612,1774338648811,-500.0,0.00018988,7]
[408832614,1774338648820,-5202.61928903,0.00019,2]
[408832616,1774338648830,-800.0,0.00019,2]
[408832618,1774338648839,-176.85210631,0.00019,2]
[408832620,1774338648849,-587.9778,0.00019,2]
[408832622,1774338648858,-2000.0,0.000191,2]
[408832624,1774338648867,-300.0,0.00019177,2]
[408832626,1774338648876,-300.0,0.00019177,2]
[408832628,1774338648886,-3000.0,0.00019178,2]
[408832630,1774338648895,-253.34848604,0.00019178,2]
[408832632,1774338648904,-151.0,0.00019178,2]
[408832634,1774338648914,-191.53676,0.00019178,2]
[408832636,1774338648923,-5678.536494,0.00019178,2]
[408832638,1774338648932,-5678.536494,0.00019178,2]
[408832639,1774338648942,-5678.536494,0.00019178,2]
[408832641,1774338648951,-5678.536494,0.00019178,2]
[408832643,1774338648960,-5678.536494,0.00019178,2]
[408832645,1774338648969,-5678.536494,0.00019178,2]
[408832647,1774338648978,-5678.536494,0.00019178,2]
[408832649,1774338648987,-5678.536494,0.00019178,2]
[408832651,1774338648996,-5678.536494,0.00019178,2]
[408832653,1774338649005,-5678.536494,0.00019178,2]
[408832655,1774338649014,-5678.536494,0.00019178,2]
[408832657,1774338649023,-5678.536494,0.00019178,2]
[408832659,1774338649034,-5678.536494,0.00019178,2]
[408832661,1774338649043,-5678.536494,0.00019178,2]
[408832663,1774338649052,-5678.536494,0.00019178,2]
[408832665,1774338649061,-5678.536494,0.00019178,2]
[408832667,1774338649070,-5678.536494,0.00019178,2]
[408832669,1774338649080,-5678.536494,0.00019178,2]
[408832671,1774338649089,-5678.536494,0.00019178,2]
[408832673,1774338649098,-5678.536491,0.00019178,2]
[408832675,1774338649107,-150.0,0.00019178,2]
[408832677,1774338649117,-150.0,0.00019178,2]
[408832679,1774338649126,-300.0,0.00019199,2]
[408832681,1774338649135,-2000.0,0.000192,2]
[408832683,1774338649145,-93177.88,0.000192,2]
[408832685,1774338649154,-165.42,0.00019496,2]
[408832687,1774338649163,-405.23,0.000195,7]
[408832689,1774338649173,-1471.86,0.000195,2]
[408832690,1774338649182,-210.25680527,0.00019595,2]
[408832692,1774338649191,-800.0,0.000196,2]
[408832693,1774338649200,-714.68,0.000196,2]
[408832694,1774338649209,-857.49,0.000196,2]
[408832695,1774338649219,-150.0,0.00019726,2]
[408832696,1774338649228,-250.0,0.00019726,2]
[408832697,1774338649238,-2098.0,0.00019746,2]
[408832698,1774338649247,-1000.0,0.000198,2]
[408832699,1774338649256,-5541.11,0.000198,2]
[408832700,1774338649266,-4959.07284341,0.000199,3]
[408832701,1774338649275,-1000.0,0.000199,2]
[408832702,1774338649284,-822.55,0.00019902,2]
[408832703,1774338649293,-15485.07778767,0.0001995,15]
[408832704,1774338649302,-300.0,0.00019999,2]
[408832705,1774338649312,-300.0,0.00019999,2]
[408832706,1774338649321,-500.0,0.00019999,2]
[408832708,1774338649331,-198.27106667,0.00019999,2]
[408832710,1774338649341,-500.0,0.00019999,2]
[408832712,1774338649354,-194.85067605,0.00019999,2]
[408832714,1774338649364,-500.0,0.00019999,2]
[408832716,1774338649374,-227.88397614,0.00019999,2]
[408832718,1774338649383,-500.0,0.00019999,2]
[408832720,1774338649393,-500.0,0.00019999,2]
[408832722,1774338649403,-644.37496228,0.00019999,2]
[408832724,1774338649412,-7035.47024237,0.0002,2]
[408832726,1774338649421,-1543.0324365,0.0002,2]
[408832728,1774338649431,-1478.51750605,0.0002,5]
[408832730,1774338649441,-4732.36443878,0.0002,2]
[408832732,1774338649450,-2464.68,0.0002,2]
[408832733,1774338649459,-3950.0,0.0002,2]
[408832736,1774338649468,-1302.66191244,0.0002,2]
[408832737,1774338649478,-1051.5808382,0.0002,2]
[408832739,1774338649488,-2881.68147655,0.0002,2]
[408832741,1774338649497,-5108.75770486,0.0002,2]
[408832743,1774338649507,-1000.0,0.0002,2]
[408832746,1774338649516,-512.34685,0.0002,2]
[408832747,1774338649525,-1215.1901,0.0002,2]
[408832750,1774338649537,-4815.4374778,0.0002,2]
[408832752,1774338649547,-544.65171777,0.0002,2]
[408832754,1774338649557,-2000.8799,0.0002,2]
[408832756,1774338649569,-10003.4782,0.0002,2]
[408832758,1774338649578,-2000.0,0.0002,2]
[408832759,1774338649588,-10000.0,0.0002,2]
[408832760,1774338649597,-200.0,0.0002,10]
[408832761,1774338649606,-2400.0,0.0002,2]
[408832762,1774338649616,-294.87333157,0.0002,20]
[408832763,1774338649627,-500.0,0.00020084,7]
[408832764,1774338649636,-521.98,0.000201,2]
[408832765,1774338649646,-300.0,0.000201,10]
[408832766,1774338649655,-217.263671,0.00020119,7]
[408832767,1774338649665,-1001.376816,0.00020119,7]
[408832768,1774338649674,-323.33,0.00020137,3]
[408832769,1774338649684,-2273.003906,0.00020154,7]
[408832771,1774338649693,-1906.071271,0.00020177,7]
[408832772,1774338649702,-485.91,0.00020187,2]
[408832773,1774338649712,-150.26675461,0.00020274,2]
[408832774,1774338649722,-350.0,0.00020274,2]
[408832775,1774338649731,-772.7071,0.000203,2]
[408832776,1774338649740,-178.08,0.00020489,2]
[408832777,1774338649750,-160.79,0.00020548,2]
[408832778,1774338649759,-21677.1,0.00020548,2]
[408832779,1774338649770,-445.19907807,0.00020553,2]
[408832780,1774338649780,-1345.0,0.0002061,2]
[408832781,1774338649789,-1262.0,0.0002061,2]
[408832782,1774338649799,-3760.0,0.0002061,2]
[408832783,1774338649809,-455.0,0.00020797,10]
[408832784,1774338649821,-300.0,0.00020799,2]
[408832785,1774338649831,-93177.88,0.000208,2]
[408832786,1774338649840,-372.339475,0.0002081,7]
[408832787,1774338649849,-450.0,0.00020822,2]
[408832788,1774338649859,-376.346657,0.00020837,7]
[408832789,1774338649868,-1201.16512626,0.00021,2]
[408832790,1774338649877,-1000.0,0.00021,2]
[408832791,1774338649887,-285.47342921,0.00021096,2]
[408832792,1774338649897,-300.0,0.00021099,2]
[408832799,1774338650265,-909.91582807,0.000211,2]
[408832800,1774338650280,-503.7985378,0.000211,2]
[408832801,1774338650289,-500.0,0.000211,2]
[408832802,1774338650299,-600.0,0.000211,2]
[408832803,1774338650308,-600.0,0.000211,2]
[408832804,1774338650318,-504.00174575,0.000211,2]
[408832805,1774338650327,-929.97013864,0.000211,2]
[408832806,1774338650337,-600.0,0.000211,2]
[408832807,1774338650348,-600.0,0.000211,2]
[408832808,1774338650359,-506.23533146,0.000211,2]
[408832809,1774338650368,-500.0,0.000211,2]
[408832810,1774338650378,-500.0,0.000211,2]
[408832811,1774338650388,-500.0,0.000211,2]
[408832812,1774338650397,-503.49606988,0.000211,2]
[408832813,1774338650407,-600.0,0.000211,2]
[408832814,1774338650416,-500.0,0.000211,2]
[408832815,1774338650427,-500.0,0.000211,2]
[408832816,1774338650437,-600.0,0.000211,2]
[408832817,1774338650446,-500.0,0.000211,2]
[408832818,1774338650457,-500.0,0.000211,2]
[408832819,1774338650466,-500.0,0.000211,2]
[408832820,1774338650480,-500.0,0.000211,2]
[408832821,1774338650490,-600.0,0.000211,2]
[408832822,1774338650499,-500.0,0.000211,2]
[408832823,1774338650509,-500.0,0.000211,2]
[408832824,1774338650522,-500.0,0.000211,2]
[408832825,1774338650533,-500.0,0.000211,2]
[408832826,1774338650543,-600.0,0.000211,2]
[408832827,1774338650553,-500.0,0.000211,2]
[408832828,1774338650563,-500.0,0.000211,2]
[408832829,1774338650572,-509.46480939,0.000211,2]
[408832830,1774338650581,-621.90678717,0.000211,2]
[408832831,1774338650591,-500.0,0.000211,2]
[408832832,1774338650601,-500.0,0.000211,2]
[408832833,1774338650611,-500.0,0.000211,2]
[408832834,1774338650620,-600.0,0.000211,2]
[408832835,1774338650630,-500.0,0.000211,2]
[408832836,1774338650639,-500.0,0.000211,2]
[408832837,1774338650649,-500.0,0.000211,2]
[408832838,1774338650659,-600.0,0.000211,2]
[408832839,1774338650668,-500.0,0.000211,2]
[408832840,1774338650677,-500.0,0.000211,2]
[408832841,1774338650686,-500.0,0.000211,2]
[408832842,1774338650696,-600.0,0.000211,2]
[408832843,1774338650705,-500.0,0.000211,2]
[408832844,1774338650714,-525.10954655,0.000211,2]
[408832845,1774338650724,-500.0,0.000211,2]
[408832846,1774338650734,-600.0,0.000211,2]
[408832847,1774338650743,-500.0,0.000211,2]
[408832848,1774338650753,-500.0,0.000211,2]
[408832849,1774338650762,-600.0,0.000211,2]
[408832850,1774338650771,-500.0,0.000211,2]
[408832851,1774338650781,-500.0,0.000211,2]
[408832852,1774338650791,-866.43827145,0.000211,2]
[408832853,1774338650801,-500.0,0.000211,2]
[408832854,1774338650814,-875.6366962,0.000211,2]
[408832855,1774338650824,-680.99817949,0.000211,2]
[408832856,1774338650833,-500.0,0.000211,2]
[408832857,1774338650842,-500.0,0.000211,2]
[408832858,1774338650851,-500.0,0.000211,2]
[408832859,1774338650860,-500.0,0.000211,2]
[408832860,1774338650869,-500.0,0.000211,2]
[408832861,1774338650879,-827.25734461,0.000211,2]
[408832862,1774338650889,-1000.0,0.000211,2]
[408832863,1774338650899,-1000.0,0.000211,2]
[408832864,1774338650909,-1000.0,0.000211,2]
[408832865,1774338650920,-1000.0,0.000211,2]
[408832866,1774338650930,-500.0,0.000211,2]
[408832867,1774338650940,-1000.0,0.000211,2]
[408832868,1774338650950,-500.0,0.000211,2]
[408832869,1774338650966,-500.0,0.000211,2]
[408832870,1774338650977,-1000.0,0.000211,2]
[408832871,1774338650986,-518.84029705,0.000211,2]
[408832872,1774338650995,-1000.0,0.000211,2]
[408832873,1774338651004,-1000.0,0.000211,2]
[408832874,1774338651014,-1000.0,0.000211,2]
[408832875,1774338651024,-1000.0,0.000211,2]
[408832876,1774338651033,-1000.0,0.000211,2]
[408832877,1774338651043,-1000.0,0.000211,2]
[408832878,1774338651053,-1759.75499047,0.000211,2]
[408832879,1774338651063,-500.0,0.000211,2]
[408832880,1774338651072,-500.0,0.000211,2]
[408832881,1774338651082,-659.59277084,0.000211,2]
[408832882,1774338651092,-400.5875051,0.00021167,2]
[408832883,1774338651101,-500.0,0.0002118,7]
[408832884,1774338651111,-550.0,0.0002137,2]
[408832885,1774338651121,-2804.0,0.0002137,2]
[408832886,1774338651130,-405.23,0.000215,7]
[408832887,1774338651140,-1471.86,0.000215,2]
[408832888,1774338651149,-1015.4741,0.000215,2]
[408832889,1774338651159,-1569.0,0.0002169,2]
[408832890,1774338651168,-5541.11,0.000218,2]
[408832891,1774338651178,-714.68,0.000218,2]
[408832892,1774338651188,-857.49,0.000218,2]
[408832893,1774338651197,-286.95324596,0.000218,2]
[408832894,1774338651207,-5000.0,0.00021918,2]
[408832895,1774338651217,-7983.17716998,0.00021918,2]
[408832896,1774338651226,-332.56306055,0.00021918,2]
[408832897,1774338651235,-500.0,0.00021973,2]
[408832898,1774338651245,-300.0,0.00021999,2]
[408832899,1774338651254,-6400.62256736,0.00022,2]
[408832900,1774338651263,-500.0,0.00022,2]
[408832901,1774338651273,-500.0,0.00022,2]
[408832902,1774338651283,-358.32983371,0.00022,2]
[408832903,1774338651292,-632.842343,0.00022,2]
[408832904,1774338651302,-1326.11356104,0.00022,30]
[408832905,1774338651311,-1000.0,0.00022,2]
[408832906,1774338651323,-500.0,0.00022,2]
[408832907,1774338651332,-600.0,0.00022,2]
[408832908,1774338651342,-600.0,0.00022,2]
[408832909,1774338651356,-500.0,0.00022,2]
[408832910,1774338651365,-500.0,0.00022,2]
[408832911,1774338651375,-500.0,0.00022,2]
[408832912,1774338651384,-500.0,0.00022,2]
[408832913,1774338651394,-500.0,0.00022,2]
[408832914,1774338651404,-500.0,0.00022,2]
[408832915,1774338651413,-600.0,0.00022,2]
[408832916,1774338651423,-500.0,0.00022,2]
[408832917,1774338651433,-500.0,0.00022,2]
[408832918,1774338651443,-500.0,0.00022,2]
[408832919,1774338651452,-600.0,0.00022,2]
[408832920,1774338651462,-600.0,0.00022,2]
[408832921,1774338651471,-600.0,0.00022,2]
[408832922,1774338651481,-600.0,0.00022,2]
[408832923,1774338651490,-500.7,0.00022,2]
[408832924,1774338651500,-500.0,0.00022,2]
[408832925,1774338651510,-600.0,0.00022,2]
[408832926,1774338651519,-500.0,0.00022,2]
[408832927,1774338651529,-600.0,0.00022,2]
[408832928,1774338651538,-500.0,0.00022,2]
[408832929,1774338651547,-600.0,0.00022,2]
[408832930,1774338651557,-500.0,0.00022,2]
[408832931,1774338651568,-600.0,0.00022,2]
[408832932,1774338651577,-500.0,0.00022,2]
[408832933,1774338651586,-600.0,0.00022,2]
[408832934,1774338651596,-500.0,0.00022,2]
[408832935,1774338651606,-600.0,0.00022,2]
[408832936,1774338651615,-500.0,0.00022,2]
[408832937,1774338651623,-600.0,0.00022,2]
[408832938,1774338651632,-500.0,0.00022,2]
[408832939,1774338651641,-500.0,0.00022,2]
[408832940,1774338651649,-674.10464148,0.00022,2]
[408832941,1774338651658,-502.07050968,0.00022,2]
[408832942,1774338651667,-500.0,0.00022,2]
[408832943,1774338651675,-607.23173059,0.00022,2]
[408832944,1774338651683,-721.20067298,0.00022,2]
[408832945,1774338651691,-500.0,0.00022,2]
[408832946,1774338651700,-500.0,0.00022,2]
[408832947,1774338651708,-500.0,0.00022,2]
[408832948,1774338651717,-500.0,0.00022,2]
[408832949,1774338651726,-500.0,0.00022,2]
[408832950,1774338651734,-500.0,0.00022,2]
[408832951,1774338651742,-500.0,0.00022,2]
[408832952,1774338651751,-500.0,0.00022,2]
[408832953,1774338651760,-500.0,0.00022,2]
[408832954,1774338651769,-500.0,0.00022,2]
[408832955,1774338651777,-500.0,0.00022,2]
[408832956,1774338651785,-500.0,0.00022,2]
[408832957,1774338651793,-500.0,0.00022,2]
[408832958,1774338651802,-500.0,0.00022,2]
[408832959,1774338651810,-500.0,0.00022,2]
[408832960,1774338651820,-500.0,0.00022,2]
[408832961,1774338651830,-500.0,0.00022,2]
[408832962,1774338651838,-500.0,0.00022,2]
[408832963,1774338651846,-500.0,0.00022,2]
[408832964,1774338651852,-500.0,0.00022,2]
[408832965,1774338651860,-500.0,0.00022,2]
[408832966,1774338651867,-500.0,0.00022,2]
[408832967,1774338651873,-500.0,0.00022,2]
[408832968,1774338651880,-500.0,0.00022,2]
[408832969,1774338651887,-500.0,0.00022,2]
[408832970,1774338651900,-500.0,0.00022,2]
[408832971,1774338651920,-500.0,0.00022,2]
[408832972,1774338651929,-500.0,0.00022,2]
[408832973,1774338651937,-500.0,0.00022,2]
[408832974,1774338651947,-500.0,0.00022,2]
[408832975,1774338651954,-502.695279,0.00022,2]
[408832976,1774338651961,-500.7,0.00022,2]
[408832977,1774338651968,-500.0,0.00022,2]
[408832978,1774338651976,-1000.0,0.00022,2]
[408832979,1774338651983,-500.0,0.00022,2]
[408832980,1774338651991,-500.0,0.00022,2]
[408832981,1774338651998,-1000.0,0.00022,2]
[408832982,1774338652006,-500.0,0.00022,2]
[408832983,1774338652013,-1000.0,0.00022,2]
[408832984,1774338652021,-500.0,0.00022,2]
[408832985,1774338652027,-1000.0,0.00022,2]
[408832986,1774338652034,-500.0,0.00022,2]
[408832987,1774338652042,-1000.0,0.00022,2]
[408832988,1774338652050,-1000.0,0.00022,2]
[408832989,1774338652057,-1000.0,0.00022,2]
[408832990,1774338652064,-1000.0,0.00022,2]
[408832991,1774338652071,-1000.0,0.00022,2]
[408832992,1774338652078,-1000.0,0.00022,2]